bitfinex-derivatives/quotes_BTCF0:USTF0_20260107
["timestamp","ask_amount","ask_price","bid_price","bid_amount"]
[1767787523800,0.20071316,92270.0,92251.0,0.01038539]
[1767787524905,0.103085,92270.0,92252.0,0.01038539]
[1767787526307,0.21155816,92270.0,92252.0,0.01038539]
[1767787528398,0.09757684,92266.0,92247.0,0.01038539]
[1767787528711,0.10847316,92262.0,92245.0,0.09224]
[1767787531408,0.09757684,92262.0,92245.0,0.09224]
[1767787533613,0.09757684,92262.0,92246.0,0.02164]
[1767787534410,0.09757684,92262.0,92241.0,0.09327653]
[1767787534411,0.01103764,92245.0,92222.0,0.09592841]
[1767787534709,0.10534955,92242.0,92234.0,0.09323358]
[1767787534910,0.10534955,92241.0,92234.0,0.09323358]
[1767787535110,0.00233755,92238.0,92224.0,0.09224]
[1767787535316,0.09431191,92239.0,92224.0,0.09224]
[1767787535514,0.00233755,92242.0,92224.0,0.09224]
[1767787537117,0.00233755,92242.0,92224.0,0.10300466]
[1767787537715,0.09431191,92244.0,92224.0,0.10300466]
[1767787539913,0.09224,92251.0,92224.0,0.09224]
[1767787539914,0.10083129,92243.0,92224.0,0.09224]
[1767787540113,0.00651938,92241.0,92224.0,0.09224]
[1767787540317,0.10083129,92241.0,92224.0,0.09224]
[1767787540704,0.00651938,92240.0,92224.0,0.09224]
[1767787541217,0.01736838,92240.0,92224.0,0.09224]
[1767787541516,0.00651938,92240.0,92224.0,0.09224]
[1767787544103,0.01736838,92240.0,92224.0,0.09224]
[1767787544308,0.00651938,92240.0,92224.0,0.09224]
[1767787546020,0.09431191,92241.0,92224.0,0.09224]
[1767787546319,0.00549873,92236.0,92219.0,0.00216876]
[1767787546527,0.00549873,92236.0,92219.0,0.09440876]
[1767787547623,0.00528788,92230.0,92219.0,0.00216876]
[1767787547820,0.00528788,92234.0,92219.0,0.00216876]
[1767787548712,0.00515913,92232.0,92219.0,0.00216876]
[1767787548916,0.0046617,92226.0,92209.0,0.09224]
[1767787549732,0.0046617,92224.0,92209.0,0.09224]
[1767787550712,0.09431191,92225.0,92209.0,0.09224]
[1767787551527,0.010851,92227.0,92209.0,0.09224]
[1767787553128,0.01101363,92227.0,92209.0,0.09224]
[1767787553625,0.01101363,92227.0,92209.0,0.10300466]
[1767787553824,0.00016263,92227.0,92209.0,0.10300466]
[1767787555525,0.00343013,92224.0,92206.0,0.09592841]
[1767787555721,0.00343013,92221.0,92201.0,0.10304466]
[1767787556029,0.09431191,92222.0,92203.0,0.01076466]
[1767787556216,0.09431191,92222.0,92203.0,0.10669307]
[1767787556423,0.09431191,92222.0,92204.0,0.01076466]
[1767787559431,0.09431191,92218.0,92201.0,0.09228]
[1767787560033,0.00288257,92221.0,92201.0,0.09228]
[1767787560228,0.01373357,92221.0,92201.0,0.09228]
[1767787560533,0.00276183,92220.0,92201.0,0.09228]
[1767787561833,0.00276183,92220.0,92201.0,0.10315751]
[1767787562331,0.09228,92220.0,92211.0,0.0984213]
[1767787562535,0.08025056,92220.0,92213.0,0.10929881]
[1767787563637,0.08025056,92220.0,92209.0,0.01087751]
[1767787563827,0.08025056,92220.0,92207.0,0.0984213]
[1767787564134,0.08025056,92220.0,92202.0,0.10929881]
[1767787565126,0.08025056,92220.0,92204.0,0.01087751]
[1767787565635,0.08025056,92220.0,92203.0,0.0984213]
[1767787565833,0.08025056,92220.0,92203.0,0.10929881]
[1767787566235,0.01190379,92219.0,92201.0,0.09228]
[1767787566535,0.01190379,92217.0,92201.0,0.09228]
[1767787567122,0.09110156,92220.0,92201.0,0.09228]
[1767787567729,0.01190379,92219.0,92201.0,0.09228]
[1767787570026,0.010852,92218.0,92201.0,0.09228]
[1767787570226,0.07423452,92211.0,92201.0,0.09228]
[1767787570440,0.07423452,92211.0,92196.0,0.10929881]
[1767787570630,0.07423452,92206.0,92189.0,0.10929881]
[1767787570825,0.15448508,92220.0,92184.0,0.09228]
[1767787570826,0.08613831,92200.0,92184.0,0.09228]
[1767787571222,0.07423452,92200.0,92184.0,0.09228]
[1767787571940,0.11164521,92194.0,92177.0,0.09228]
[1767787572134,0.07423452,92190.0,92177.0,0.09228]
[1767787572337,0.07423452,92190.0,92177.0,0.10315751]
[1767787573139,0.07423452,92190.0,92177.0,0.09228]
[1767787574241,0.11164521,92194.0,92177.0,0.09228]
[1767787574543,0.09228,92205.0,92177.0,0.09228]
[1767787574544,0.07423452,92190.0,92178.0,0.01087751]
[1767787575642,0.07423452,92190.0,92177.0,0.09228]
[1767787576536,0.18587973,92190.0,92177.0,0.09228]
[1767787577141,0.11164521,92184.0,92167.0,0.09228]
[1767787577339,0.07423452,92180.0,92167.0,0.09228]
[1767787577742,0.07423452,92180.0,92168.0,0.01087751]
[1767787578245,9.34e-05,92179.0,92168.0,0.01087751]
[1767787582737,9.34e-05,92179.0,92168.0,0.10929881]
[1767787582941,9.34e-05,92179.0,92169.0,0.01087751]
[1767787586841,9.34e-05,92179.0,92167.0,0.09228]
[1767787587745,9.34e-05,92179.0,92165.0,0.01087751]
[1767787588647,9.34e-05,92179.0,92165.0,0.10929881]
[1767787589348,9.34e-05,92179.0,92166.0,0.01087751]
[1767787589544,0.07423452,92176.0,92161.0,0.01087751]
[1767787589850,9.34e-05,92179.0,92162.0,0.01087751]
[1767787590051,0.01190379,92171.0,92150.0,0.10929881]
[1767787590239,0.01190379,92167.0,92141.0,0.10929881]
[1767787590441,0.01190379,92167.0,92144.0,0.01087751]
[1767787590442,0.07423452,92160.0,92144.0,0.01087751]
[1767787590645,9.125e-05,92159.0,92144.0,0.01087751]
[1767787590944,9.125e-05,92159.0,92140.0,0.01087751]
[1767787591136,9.125e-05,92159.0,92141.0,0.01087751]
[1767787591337,9.125e-05,92159.0,92142.0,0.0984213]
[1767787591544,9.125e-05,92159.0,92144.0,0.0984213]
[1767787591744,9.125e-05,92159.0,92145.0,0.01182852]
[1767787592435,9.125e-05,92159.0,92140.0,0.09115579]
[1767787592646,0.07423452,92150.0,92140.0,0.01182852]
[1767787592947,0.01159277,92170.0,92147.0,0.01182852]
[1767787593152,0.09232,92166.0,92147.0,0.01182852]
[1767787593347,0.07423452,92160.0,92148.0,0.01182852]
[1767787593551,0.07423452,92160.0,92143.0,0.01182852]
[1767787593736,0.10303706,92159.0,92136.0,0.01182852]
[1767787593940,0.07423452,92150.0,92137.0,0.01182852]
[1767787594145,0.10303706,92158.0,92137.0,0.01182852]
[1767787594437,0.07423452,92150.0,92137.0,0.01182852]
[1767787594651,0.17727158,92150.0,92128.0,0.01182852]
[1767787594840,0.01159277,92154.0,92133.0,0.01182852]
[1767787595040,0.07423452,92150.0,92133.0,0.01182852]
[1767787596250,0.07423452,92143.0,92125.0,0.01182852]
[1767787596446,0.10303706,92161.0,92138.0,0.01182852]
[1767787596651,0.01084787,92185.0,92138.0,0.01182852]
[1767787596652,0.10303706,92159.0,92139.0,0.01182852]
[1767787596841,0.10303706,92155.0,92136.0,0.01182852]
[1767787597038,0.07423452,92150.0,92132.0,0.01182852]
[1767787597241,0.09232,92149.0,92132.0,0.01182852]
[1767787597448,0.09232,92149.0,92135.0,0.01182852]
[1767787597951,0.01159277,92163.0,92144.0,0.01182852]
[1767787598158,0.01159277,92159.0,92139.0,0.01182852]
[1767787598344,0.09232,92158.0,92139.0,0.01182852]
[1767787598852,0.10303706,92156.0,92133.0,0.01182852]
[1767787599048,0.10303706,92155.0,92133.0,0.01182852]
[1767787599254,0.10303706,92154.0,92133.0,0.01182852]
[1767787599455,0.07423452,92150.0,92133.0,0.01182852]
[1767787599663,0.01159277,92151.0,92130.0,0.01182852]
[1767787599953,0.07423452,92150.0,92131.0,0.01182852]
[1767787600153,0.09144429,92154.0,92131.0,0.09115579]
[1767787600347,0.07423452,92150.0,92132.0,0.01182852]
[1767787600750,0.01159277,92153.0,92132.0,0.01182852]
[1767787600953,0.07423452,92150.0,92133.0,0.01182852]
[1767787601462,0.07423452,92150.0,92130.0,0.01182852]
[1767787601650,0.10303706,92151.0,92130.0,0.01182852]
[1767787601849,0.10303706,92149.0,92130.0,0.01182852]
[1767787602366,0.09144429,92149.0,92130.0,0.01182852]
[1767787602655,0.09232,92158.0,92130.0,0.01182852]
[1767787602656,0.01159277,92154.0,92133.0,0.01182852]
[1767787602849,0.01159277,92153.0,92133.0,0.01182852]
[1767787603050,0.07423452,92150.0,92133.0,0.01182852]
[1767787603246,0.10303706,92153.0,92133.0,0.01182852]
[1767787603466,0.07423452,92150.0,92133.0,0.01182852]
[1767787604455,0.10303706,92152.0,92129.0,0.09449088]
[1767787604647,0.17727158,92150.0,92129.0,0.1063194]
[1767787604843,0.10303706,92149.0,92129.0,0.1063194]
[1767787605154,0.09144429,92149.0,92130.0,0.01182852]
[1767787605461,0.07423452,92150.0,92135.0,0.01182852]
[1767787605960,0.09232,92151.0,92135.0,0.01182852]
[1767787606151,0.09232,92151.0,92115.0,0.010864]
[1767787606152,0.01159277,92133.0,92115.0,0.010864]
[1767787606356,0.07423452,92130.0,92113.0,0.01195748]
[1767787606670,0.07423452,92130.0,92114.0,0.01182852]
[1767787607254,0.07423452,92124.0,92113.0,0.00012896]
[1767787607459,0.09144429,92123.0,92108.0,0.09232]
[1767787607657,0.07423452,92120.0,92108.0,0.09232]
[1767787608463,0.00012896,92119.0,92108.0,0.09232]
[1767787608654,0.07423452,92130.0,92114.0,0.01182852]
[1767787609162,0.09236,92132.0,92110.0,0.010864]
[1767787609163,0.09236,92132.0,92118.0,0.01182852]
[1767787609660,0.06084833,92138.0,92124.0,0.01182852]
[1767787609865,0.09236,92139.0,92124.0,0.01182852]
[1767787610862,0.19539706,92139.0,92119.0,0.01182852]
[1767787611362,0.01159277,92138.0,92119.0,0.01182852]
[1767787611564,0.10303706,92138.0,92119.0,0.01182852]
[1767787611866,0.07423452,92130.0,92119.0,0.01182852]
[1767787612457,0.07423452,92130.0,92115.0,0.01182852]
[1767787612652,0.07423452,92130.0,92112.0,0.09115579]
[1767787612859,0.07423452,92130.0,92112.0,0.10298431]
[1767787613965,0.10303706,92129.0,92108.0,0.09232]
[1767787614174,0.10303706,92129.0,92108.0,0.10414852]
[1767787614361,0.10303706,92129.0,92109.0,0.01182852]
[1767787615374,0.09144429,92129.0,92110.0,0.01182852]
[1767787616072,0.07423452,92120.0,92107.0,0.010865]
[1767787616374,0.10303706,92126.0,92108.0,0.09236]
[1767787616572,0.010861,92137.0,92114.0,0.10298431]
[1767787616879,0.01159277,92134.0,92113.0,0.10298431]
[1767787617062,0.09144429,92135.0,92117.0,0.01182852]
[1767787617266,0.10303706,92134.0,92111.0,0.01182852]
[1767787617475,0.07423452,92130.0,92111.0,0.01182852]
[1767787617866,0.16567881,92130.0,92111.0,0.01182852]
[1767787618065,0.10303706,92128.0,92108.0,0.18351579]
[1767787618669,0.10303706,92128.0,92108.0,0.19534431]
[1767787620281,0.10303706,92128.0,92109.0,0.01062074]
[1767787621283,0.10485922,92127.0,92108.0,0.09236]
[1767787621470,0.10485922,92127.0,92107.0,0.010864]
[1767787621676,0.07423452,92120.0,92106.0,0.09236]
[1767787621876,0.07423452,92130.0,92112.0,0.01091519]
[1767787622078,0.09236,92132.0,92116.0,0.01091519]
[1767787622280,0.09236,92137.0,92122.0,0.01091519]
[1767787622489,0.09236,92149.0,92131.0,0.02177719]
[1767787622690,0.17745452,92150.0,92132.0,0.01091519]
[1767787622886,0.01021967,92145.0,92127.0,0.010862]
[1767787623084,0.17681419,92150.0,92128.0,0.01091519]
[1767787623284,0.18767419,92150.0,92128.0,0.01091519]
[1767787623592,0.17745452,92150.0,92130.0,0.01091519]
[1767787623792,0.28575182,92150.0,92130.0,0.01091519]
[1767787623993,0.09807763,92149.0,92130.0,0.01091519]
[1767787624378,0.09807763,92147.0,92126.0,0.01091519]
[1767787624578,0.1191573,92145.0,92125.0,0.09236]
[1767787624892,0.07423452,92140.0,92122.0,0.10474327]
[1767787625088,0.17231215,92140.0,92123.0,0.09236]
[1767787625796,0.09807763,92137.0,92117.0,0.010863]
[1767787625993,0.09807763,92137.0,92119.0,0.010863]
[1767787626301,0.07423452,92140.0,92121.0,0.01091519]
[1767787626491,0.1082973,92142.0,92121.0,0.01091519]
[1767787627398,0.07423452,92140.0,92121.0,0.01091519]
[1767787627598,0.17231215,92140.0,92121.0,0.01091519]
[1767787627991,0.010861,92139.0,92121.0,0.01091519]
[1767787628393,0.17231215,92140.0,92121.0,0.01091519]
[1767787628590,0.09807763,92140.0,92121.0,0.01091519]
[1767787629395,0.09236,92150.0,92114.0,0.09236]
[1767787629396,0.01021967,92150.0,92130.0,0.07423452]
[1767787629602,0.24186473,92150.0,92131.0,0.010862]
[1767787629796,0.09807763,92149.0,92131.0,0.010862]
[1767787630104,0.1082973,92149.0,92131.0,0.010862]
[1767787630301,0.1082973,92149.0,92127.0,0.01091519]
[1767787631298,0.1082973,92149.0,92128.0,0.010862]
[1767787631498,0.05933291,92150.0,92133.0,0.01091519]
[1767787631801,0.09807763,92156.0,92133.0,0.01091519]
[1767787631802,0.09236,92151.0,92136.0,0.01091519]
[1767787631999,0.09236,92151.0,92131.0,0.02177719]
[1767787633603,0.09236,92151.0,92134.0,0.010861]
[1767787633806,0.09236,92151.0,92134.0,0.02177619]
[1767787633992,0.01021967,92154.0,92134.0,0.02177619]
[1767787634192,0.2509849,92156.0,92135.0,0.01091519]
[1767787634395,0.26120457,92156.0,92135.0,0.01091519]
[1767787634594,0.1082973,92155.0,92135.0,0.01091519]
[1767787634791,0.01021967,92154.0,92136.0,0.010861]
[1767787634997,0.1082973,92154.0,92136.0,0.010861]
[1767787635605,0.06054727,92156.0,92139.0,0.01091519]
[1767787635902,0.1002478,92159.0,92140.0,0.01091519]
[1767787636107,0.16071548,92159.0,92140.0,0.01091519]
[1767787636297,0.1082973,92154.0,92134.0,0.010861]
[1767787636495,0.1082973,92150.0,92136.0,0.010861]
[1767787636695,0.1082973,92150.0,92137.0,0.09236]
[1767787637308,0.09807763,92150.0,92137.0,0.09236]
[1767787637607,0.01021967,92154.0,92137.0,0.09236]
[1767787637801,0.09807763,92155.0,92138.0,0.01091519]
[1767787639908,0.09807763,92155.0,92137.0,0.103221]
[1767787642703,0.09807763,92155.0,92137.0,0.11413619]
[1767787644510,0.09807763,92155.0,92137.0,0.10327519]
[1767787646111,0.09824044,92155.0,92137.0,0.10327519]
[1767787648509,0.10846011,92155.0,92137.0,0.10327519]
[1767787650412,0.1082973,92151.0,92137.0,0.09236]
[1767787650606,0.1082973,92149.0,92137.0,0.09236]
[1767787650803,0.1082973,92154.0,92137.0,0.09236]
[1767787651008,0.1082973,92152.0,92137.0,0.09236]
[1767787651822,0.09807763,92152.0,92137.0,0.09236]
[1767787652618,0.10843392,92146.0,92135.0,0.09236]
[1767787652821,0.10843392,92144.0,92132.0,0.09236]
[1767787653223,0.10843392,92141.0,92132.0,0.09236]
[1767787653713,0.09867626,92141.0,92132.0,0.09236]
[1767787654114,0.10843392,92146.0,92132.0,0.09236]
[1767787654314,0.00975766,92145.0,92132.0,0.09236]
[1767787655211,0.00975766,92143.0,92132.0,0.09236]
[1767787655423,0.10843392,92143.0,92132.0,0.09236]
[1767787656527,0.00975766,92142.0,92132.0,0.09236]
[1767787656819,0.10843392,92136.0,92117.0,0.10701563]
[1767787657016,0.10843392,92136.0,92118.0,0.09236]
[1767787657219,0.09867626,92136.0,92119.0,0.0093591]
[1767787657414,0.00975766,92139.0,92119.0,0.0093591]
[1767787657814,0.09867626,92141.0,92119.0,0.0093591]
[1767787658221,0.10843392,92141.0,92119.0,0.0093591]
[1767787658530,0.10843392,92139.0,92119.0,0.0093591]
[1767787662125,0.10843392,92132.0,92113.0,0.0093591]
[1767787662328,0.10843392,92130.0,92114.0,0.09236]
[1767787662524,0.10843392,92130.0,92115.0,0.09236]
[1767787663225,0.10211766,92139.0,92118.0,0.0093591]
[1767787663527,0.09867626,92137.0,92118.0,0.0093591]
[1767787663827,0.10843392,92135.0,92115.0,0.09236]
[1767787664126,0.10843392,92135.0,92115.0,0.1017191]
[1767787664330,0.010862,92132.0,92115.0,0.09236]
[1767787664622,0.09867626,92127.0,92115.0,0.09236]
[1767787664827,0.00975766,92131.0,92115.0,0.09236]
[1767787665427,0.00975766,92129.0,92115.0,0.09236]
[1767787665830,0.09867626,92128.0,92107.0,0.0202231]
[1767787666019,0.10843392,92127.0,92108.0,0.09236]
[1767787666221,0.10843392,92122.0,92108.0,0.09236]
[1767787666416,0.10843392,92120.0,92100.0,0.0093591]
[1767787666718,0.10843392,92116.0,92097.0,0.1017191]
[1767787666919,0.10843392,92112.0,92097.0,0.09236]
[1767787667122,0.00975766,92117.0,92097.0,0.09236]
[1767787667328,0.00975766,92117.0,92091.0,0.09765653]
[1767787667329,0.09867626,92113.0,92094.0,0.0093591]
[1767787667519,0.09867626,92113.0,92097.0,0.0093591]
[1767787667720,0.10843392,92112.0,92093.0,0.0093591]
[1767787667927,0.09867626,92112.0,92093.0,0.0093591]
[1767787669116,0.00975766,92110.0,92092.0,0.09236]
[1767787669328,0.00975766,92092.0,92078.0,0.09236]
[1767787669521,0.13996,92125.0,92081.0,0.0093591]
[1767787669522,0.09867626,92100.0,92081.0,0.0093591]
[1767787669721,0.09867626,92105.0,92085.0,0.0093591]
[1767787670233,0.09236,92108.0,92090.0,0.0093591]
[1767787670725,0.10843392,92105.0,92086.0,0.0093591]
[1767787670926,0.10843392,92099.0,92079.0,0.0093591]
[1767787671128,0.09867626,92099.0,92080.0,0.0093591]
[1767787671331,0.00975766,92100.0,92079.0,0.1017191]
[1767787671332,0.09867626,92096.0,92079.0,0.1017191]
[1767787671717,0.10843392,92108.0,92085.0,0.0093591]
[1767787671919,0.10843392,92106.0,92085.0,0.0093591]
[1767787672126,0.09236,92105.0,92089.0,0.0093591]
[1767787672322,0.09236,92105.0,92090.0,0.0093591]
[1767787672720,0.09236,92105.0,92084.0,0.0093591]
[1767787672920,0.09867626,92104.0,92084.0,0.0093591]
[1767787673418,0.09867626,92104.0,92085.0,0.0093591]
[1767787674330,0.10843392,92104.0,92085.0,0.0093591]
[1767787674528,0.10843392,92102.0,92081.0,0.0093591]
[1767787674730,0.00975766,92107.0,92086.0,0.0093591]
[1767787674932,0.10843392,92102.0,92082.0,0.09236]
[1767787675236,0.10843392,92097.0,92082.0,0.09236]
[1767787675634,0.09867626,92103.0,92084.0,0.0093591]
[1767787675823,0.09236,92108.0,92091.0,0.10701563]
[1767787676030,0.09236,92108.0,92092.0,0.0093591]
[1767787676336,0.09236,92108.0,92091.0,0.010866]
[1767787676536,0.09236,92108.0,92088.0,0.0093591]
[1767787677233,0.19103626,92108.0,92089.0,0.010867]
[1767787677536,0.09867626,92107.0,92089.0,0.010867]
[1767787677738,0.10843392,92107.0,92089.0,0.010867]
[1767787677944,0.10843392,92107.0,92086.0,0.09765653]
[1767787678136,0.10843392,92105.0,92085.0,0.0093591]
[1767787678437,0.10843392,92101.0,92082.0,0.09236]
[1767787679340,0.10843392,92101.0,92083.0,0.010867]
[1767787679833,0.10843392,92101.0,92082.0,0.1017191]
[1767787679834,0.00975766,92103.0,92089.0,0.0093591]
[1767787680037,0.00975766,92103.0,92082.0,0.09236]
[1767787680038,0.09867626,92113.0,92092.0,0.00960054]
[1767787680238,0.0924,92116.0,92100.0,0.00960054]
[1767787680430,0.010863,92120.0,92101.0,0.00960054]
[1767787680627,0.10848446,92120.0,92096.0,0.010866]
[1767787680837,0.10848446,92120.0,92096.0,0.02046654]
[1767787681040,0.10848446,92120.0,92097.0,0.00960054]
[1767787681730,0.09762146,92120.0,92097.0,0.00960054]
[1767787681926,0.09762146,92120.0,92100.0,0.010865]
[1767787682134,0.06054975,92129.0,92107.0,0.010865]
[1767787682135,0.0924,92124.0,92107.0,0.010865]
[1767787682334,0.0924,92124.0,92107.0,0.02085718]
[1767787682533,0.0924,92124.0,92107.0,0.00999218]
[1767787682743,0.00217088,92129.0,92109.0,0.00999218]
[1767787682925,0.00217088,92129.0,92112.0,0.010864]
[1767787683433,0.00217088,92129.0,92115.0,0.010864]
[1767787683634,0.00217088,92129.0,92112.0,0.00999218]
[1767787683940,0.09670266,92127.0,92106.0,0.00999218]
[1767787685041,0.09582864,92125.0,92103.0,0.103265]
[1767787685241,0.09582864,92125.0,92103.0,0.11325718]
[1767787686542,0.09726481,92125.0,92103.0,0.11325718]
[1767787687748,0.09582864,92125.0,92105.0,0.10269425]
[1767787688045,0.00217088,92129.0,92108.0,0.00999218]
[1767787688241,0.09799952,92129.0,92108.0,0.00999218]
[1767787688845,0.09937959,92129.0,92108.0,0.00999218]
[1767787690138,0.09937959,92129.0,92114.0,0.010864]
[1767787690139,0.09799952,92129.0,92114.0,0.010864]
[1767787690544,0.09930372,92129.0,92113.0,0.010864]
[1767787690841,0.09799952,92129.0,92113.0,0.010864]
[1767787692443,0.00131829,92148.0,92122.0,0.00999218]
[1767787692642,0.934814,92195.0,92140.0,0.07430568]
[1767787692643,0.06036543,92151.0,92140.0,0.07430568]
[1767787692954,0.07430568,92150.0,92132.0,0.09236]
[1767787693139,0.00131829,92149.0,92132.0,0.09236]
[1767787694536,0.00162011,92147.0,92132.0,0.09236]
[1767787694737,0.00162011,92146.0,92132.0,0.09236]
[1767787695237,0.00162011,92146.0,92120.0,0.07430568]
[1767787695238,0.09582864,92142.0,92115.0,0.00999218]
[1767787695443,0.00162011,92131.0,92116.0,0.09236]
[1767787695842,0.09582864,92132.0,92116.0,0.09236]
[1767787697650,0.09789547,92131.0,92116.0,0.09236]
[1767787697849,0.00206683,92124.0,92106.0,0.010865]
[1767787698043,0.07430568,92120.0,92106.0,0.010865]
[1767787698350,0.07430568,92120.0,92103.0,0.09236]
[1767787698351,0.00206683,92124.0,92103.0,0.09236]
[1767787698551,0.00206683,92124.0,92104.0,0.010865]
[1767787698848,0.07430568,92120.0,92103.0,0.09236]
[1767787699946,0.09844881,92104.0,92084.0,0.09270207]
[1767787700249,0.09236,92103.0,92084.0,0.09270207]
[1767787700549,0.09236,92103.0,92084.0,0.10269425]
[1767787700947,0.07430568,92100.0,92081.0,0.010868]
[1767787702042,0.07430568,92100.0,92081.0,0.02086018]
[1767787702844,0.19093278,92103.0,92081.0,0.02086018]
[1767787703144,0.19093278,92103.0,92081.0,0.00999218]
[1767787703549,0.19093278,92103.0,92082.0,0.010867]
[1767787703741,0.09582864,92102.0,92082.0,0.010867]
[1767787703941,0.0984532,92118.0,92095.0,0.00999218]
[1767787704141,0.09236,92117.0,92095.0,0.00999218]
[1767787704345,0.19080576,92117.0,92095.0,0.00999218]
[1767787704544,0.09844576,92116.0,92094.0,0.09270207]
[1767787704846,0.09844576,92115.0,92094.0,0.09270207]
[1767787705242,0.17275144,92110.0,92088.0,0.010867]
[1767787705441,0.09844576,92109.0,92088.0,0.010867]
[1767787705841,0.09844576,92109.0,92090.0,0.07430568]
[1767787706144,0.09582864,92109.0,92094.0,0.010866]
[1767787706638,0.06113054,92124.0,92105.0,0.010865]
[1767787706844,0.0924,92125.0,92110.0,0.07430568]
[1767787707046,0.0924,92125.0,92107.0,0.00999218]
[1767787707346,0.0924,92125.0,92108.0,0.010864]
[1767787708342,0.0924,92125.0,92107.0,0.00999218]
[1767787710053,0.0924,92125.0,92105.0,0.10356707]
[1767787710253,0.0924,92125.0,92108.0,0.010864]
[1767787711053,0.0924,92125.0,92105.0,0.09270207]
[1767787712254,0.0924,92125.0,92106.0,0.010865]
[1767787713256,0.10113788,92124.0,92106.0,0.010865]
[1767787714951,0.09919802,92124.0,92106.0,0.010865]
[1767787717048,0.10096773,92124.0,92106.0,0.010865]
[1767787718955,0.0017247,92121.0,92106.0,0.010865]
[1767787719652,0.09919802,92117.0,92092.0,0.18582394]
[1767787719959,0.10092272,92109.0,92088.0,0.00910343]
[1767787720255,0.09236,92112.0,92094.0,0.010866]
[1767787720558,0.09236,92112.0,92096.0,0.010866]
[1767787720757,0.0940718,92112.0,92096.0,0.010866]
[1767787720957,0.0940718,92112.0,92098.0,0.010866]
[1767787721358,0.0940718,92112.0,92100.0,0.010865]
[1767787721857,0.00217088,92129.0,92100.0,0.010865]
[1767787721858,0.0017118,92117.0,92100.0,0.010865]
[1767787722160,0.0924,92116.0,92100.0,0.01996843]
[1767787722552,0.0924,92116.0,92096.0,0.010866]
[1767787722553,0.10119214,92114.0,92096.0,0.010866]
[1767787722749,0.00199412,92112.0,92096.0,0.010866]
[1767787722949,0.00199412,92111.0,92096.0,0.010866]
[1767787723350,0.00199412,92106.0,92084.0,0.09342394]
[1767787723556,0.0924,92105.0,92092.0,0.010866]
[1767787723761,0.0924,92105.0,92094.0,0.010866]
[1767787723963,0.0924,92105.0,92091.0,0.010866]
[1767787724354,0.19336647,92105.0,92091.0,0.010866]
[1767787724763,0.00176845,92104.0,92091.0,0.010866]
[1767787725464,0.00176845,92101.0,92086.0,0.010867]
[1767787726364,0.00176845,92101.0,92088.0,0.010867]
[1767787727159,0.00176845,92101.0,92081.0,0.00910343]
[1767787727359,0.00193276,92100.0,92081.0,0.00910343]
[1767787727560,0.00193276,92099.0,92082.0,0.010868]
[1767787727956,0.00193276,92099.0,92085.0,0.010867]
[1767787728158,0.09919802,92100.0,92087.0,0.010867]
[1767787728663,0.09919802,92100.0,92084.0,0.010867]
[1767787729368,0.0018951,92099.0,92080.0,0.09342394]
[1767787730167,0.0018951,92099.0,92082.0,0.010867]
[1767787730666,0.0018951,92099.0,92084.0,0.010867]
[1767787730874,0.09919802,92100.0,92084.0,0.010867]
[1767787731056,0.18637184,92100.0,92081.0,0.010868]
[1767787731259,0.010866,92097.0,92080.0,0.10252737]
[1767787731559,0.17550684,92100.0,92080.0,0.10252737]
[1767787731560,0.00189342,92099.0,92080.0,0.10252737]
[1767787732364,0.00187056,92097.0,92077.0,0.10150343]
[1767787732765,0.00187056,92097.0,92083.0,0.010867]
[1767787734872,0.0924,92105.0,92087.0,0.00910343]
[1767787735261,0.00185784,92104.0,92086.0,0.09342394]
[1767787735464,0.00185784,92104.0,92084.0,0.010867]
[1767787736270,0.00179186,92102.0,92084.0,0.010867]
[1767787736464,0.0744154,92100.0,92084.0,0.010867]
[1767787736664,0.00179186,92097.0,92080.0,0.0852834]
[1767787736867,0.00179186,92096.0,92080.0,0.010868]
[1767787737174,0.00179186,92095.0,92077.0,0.0924]
[1767787737375,0.09919802,92096.0,92078.0,0.00910343]
[1767787737561,0.0924,92095.0,92078.0,0.00910343]
[1767787737761,0.0924,92095.0,92079.0,0.00910343]
[1767787738174,0.0924,92095.0,92082.0,0.010867]
[1767787739776,0.0924,92095.0,92079.0,0.00910343]
[1767787740072,0.0924,92095.0,92084.0,0.010867]
[1767787740767,0.09720423,92106.0,92089.0,0.010867]
[1767787740970,0.0924,92105.0,92088.0,0.00919265]
[1767787741363,0.09427621,92105.0,92087.0,0.09823734]
[1767787741576,0.00187621,92104.0,92084.0,0.10340533]
[1767787741759,0.0744154,92110.0,92092.0,0.010866]
[1767787741964,0.0924,92109.0,92101.0,0.010865]
[1767787742173,0.00173138,92119.0,92098.0,0.00930603]
[1767787742374,0.00173138,92115.0,92097.0,0.10507868]
[1767787742576,0.00173138,92114.0,92097.0,0.010866]
[1767787743265,0.09413138,92113.0,92097.0,0.010866]
[1767787743466,0.09413138,92113.0,92095.0,0.00930603]
[1767787743671,0.00173138,92104.0,92085.0,0.09421268]
[1767787743874,0.09930655,92105.0,92086.0,0.00930603]
[1767787744173,0.09930655,92105.0,92087.0,0.00930603]
[1767787745172,0.09930655,92105.0,92089.0,0.010867]
[1767787746177,0.09930655,92105.0,92087.0,0.00930603]
[1767787746475,0.10146279,92105.0,92086.0,0.09421268]
[1767787746774,0.07657164,92100.0,92081.0,0.02017403]
[1767787746974,0.07657164,92100.0,92083.0,0.010867]
[1767787747176,0.0744154,92100.0,92083.0,0.010867]
[1767787747580,0.00215624,92107.0,92087.0,0.00930603]
[1767787748071,0.00215624,92107.0,92090.0,0.010867]
[1767787748273,0.09930655,92109.0,92097.0,0.010866]
[1767787748463,0.00233515,92111.0,92091.0,0.00930603]
[1767787748668,0.0924,92111.0,92097.0,0.02017203]
[1767787748868,0.00233515,92117.0,92097.0,0.02017203]
[1767787749080,0.010863,92123.0,92097.0,0.010866]
[1767787749081,0.00233515,92115.0,92097.0,0.010866]
[1767787749280,0.09930655,92116.0,92100.0,0.0852804]
[1767787749464,0.0924,92115.0,92100.0,0.0852804]
[1767787749668,0.0924,92115.0,92100.0,0.010865]
[1767787750177,0.10159296,92122.0,92109.0,0.010864]
[1767787750364,0.0924,92121.0,92105.0,0.010865]
[1767787750773,0.0924,92120.0,92107.0,0.010865]
[1767787752068,0.0924,92120.0,92024.0,0.08249126]
[1767787752069,0.1668154,92120.0,92101.0,0.00930603]
[1767787752272,0.16919131,92120.0,92101.0,0.00930603]
[1767787752582,0.16919131,92120.0,92101.0,0.02017103]
[1767787753985,0.16919131,92120.0,92101.0,0.010865]
[1767787754478,0.09477591,92120.0,92101.0,0.010865]
[1767787754680,0.00247162,92118.0,92101.0,0.010865]
[1767787756680,0.09930655,92119.0,92104.0,0.010865]
[1767787756870,0.0924,92120.0,92104.0,0.010865]
[1767787757067,0.0924,92120.0,92106.0,0.00930603]
[1767787757274,0.0924,92120.0,92109.0,0.010864]
[1767787757476,0.0924,92120.0,92106.0,0.010865]